[Event "GrandPrix_30.05"]
[Site "Chess.com"]
[Date "2020.05.30"]
[Round "7"]
[White "Karateloru"]
[Black "MiroVlasenko"]
[Result "1/2-1/2"]
[WhiteElo "2191"]
[BlackElo "2282"]
[TimeControl "600+2"]
[EndTime "11:29:19 PDT"]
[Termination "Game drawn - insufficient material"]

1. e4 {[%clk 0:10:01.9]} 1... c5 {[%clk 0:10:00.5]} 2. Nf3 {[%clk 0:10:02.1]}
2... a6 {[%clk 0:10:01.5]} 3. c4 {[%clk 0:10:01]} 3... e6 {[%clk 0:10:01.7]} 4.
Nc3 {[%clk 0:10:01.8]} 4... b6 {[%clk 0:09:59.1]} 5. d4 {[%clk 0:10:01.9]} 5...
cxd4 {[%clk 0:10:00]} 6. Nxd4 {[%clk 0:10:03.8]} 6... Bb7 {[%clk 0:09:54.8]} 7.
Bd3 {[%clk 0:10:03.2]} 7... Qc7 {[%clk 0:09:50.8]} 8. O-O {[%clk 0:10:02.1]}
8... Nf6 {[%clk 0:09:43]} 9. Re1 {[%clk 0:10:01]} 9... Bd6 {[%clk 0:09:24.5]}
10. Nf3 {[%clk 0:10:01.1]} 10... Nc6 {[%clk 0:09:15.1]} 11. a3 {[%clk 0:09:03]}
11... Ne5 {[%clk 0:08:51.3]} 12. Nxe5 {[%clk 0:08:50.6]} 12... Bxe5 {[%clk
0:08:53.2]} 13. h3 {[%clk 0:08:51.7]} 13... Bxc3 {[%clk 0:08:51.5]} 14. bxc3
{[%clk 0:08:51.4]} 14... e5 {[%clk 0:08:52.8]} 15. Be3 {[%clk 0:08:42]} 15... d6
{[%clk 0:08:49.7]} 16. Rb1 {[%clk 0:08:41.6]} 16... Nd7 {[%clk 0:08:50.6]} 17.
Qb3 {[%clk 0:08:41.2]} 17... Kd8 {[%clk 0:06:53.3]} 18. Red1 {[%clk 0:08:13.3]}
18... Nc5 {[%clk 0:05:40.3]} 19. Bxc5 {[%clk 0:07:15.5]} 19... Qxc5 {[%clk
0:05:39.8]} 20. Qxb6+ {[%clk 0:07:16.5]} 20... Qxb6 {[%clk 0:05:39.4]} 21. Rxb6
{[%clk 0:07:18.4]} 21... Kc7 {[%clk 0:05:40.9]} 22. Rdb1 {[%clk 0:07:19.3]}
22... Rhb8 {[%clk 0:05:32.5]} 23. a4 {[%clk 0:06:17.2]} 23... Bc8 {[%clk
0:04:46.4]} 24. a5 {[%clk 0:06:01]} 24... Rxb6 {[%clk 0:04:06.2]} 25. Rxb6
{[%clk 0:06:02.9]} 25... Rb8 {[%clk 0:04:04.3]} 26. c5 {[%clk 0:06:03.5]} 26...
dxc5 {[%clk 0:04:02.2]} 27. Bxa6 {[%clk 0:05:53]} 27... Bxa6 {[%clk 0:02:30.9]}
28. Rxa6 {[%clk 0:05:54.9]} 28... Rb1+ {[%clk 0:02:03]} 29. Kh2 {[%clk
0:05:53.9]} 29... c4 {[%clk 0:02:04.4]} 30. Ra7+ {[%clk 0:03:59.7]} 30... Rb7
{[%clk 0:02:02]} 31. Ra8 {[%clk 0:04:00.3]} 31... Rb3 {[%clk 0:02:00.7]} 32. Rf8
{[%clk 0:03:58.1]} 32... Rxc3 {[%clk 0:01:57.8]} 33. Rxf7+ {[%clk 0:03:59.1]}
33... Kc6 {[%clk 0:01:43.6]} 34. a6 {[%clk 0:00:36.4]} 34... Ra3 {[%clk
0:01:38.2]} 35. a7 {[%clk 0:00:37]} 35... Kb6 {[%clk 0:01:21.3]} 36. f4 {[%clk
0:00:30.7]} 36... Rxa7 {[%clk 0:01:11.3]} 37. Rf8 {[%clk 0:00:27.5]} 37... c3
{[%clk 0:01:01.4]} 38. fxe5 {[%clk 0:00:26.9]} 38... c2 {[%clk 0:00:51.2]} 39.
Rf1 {[%clk 0:00:27.2]} 39... Kc5 {[%clk 0:00:30.4]} 40. Rc1 {[%clk 0:00:26]}
40... Ra2 {[%clk 0:00:31]} 41. Kg3 {[%clk 0:00:26.9]} 41... Kd4 {[%clk 0:00:31]}
42. e6 {[%clk 0:00:27]} 42... Kd3 {[%clk 0:00:30.7]} 43. Kf4 {[%clk 0:00:21]}
43... Ra4 {[%clk 0:00:18.5]} 44. Kf5 {[%clk 0:00:15.1]} 44... g6+ {[%clk
0:00:19.4]} 45. Kf6 {[%clk 0:00:13.2]} 45... Rxe4 {[%clk 0:00:20.3]} 46. e7
{[%clk 0:00:14.1]} 46... Kd2 {[%clk 0:00:21.4]} 47. Rxc2+ {[%clk 0:00:14.9]}
47... Kxc2 {[%clk 0:00:22.8]} 48. Kf7 {[%clk 0:00:16.4]} 48... Kd2 {[%clk
0:00:24.1]} 49. e8=Q {[%clk 0:00:16.7]} 49... Rxe8 {[%clk 0:00:24.9]} 50. Kxe8
{[%clk 0:00:18.6]} 50... Ke3 {[%clk 0:00:26.5]} 51. Kf7 {[%clk 0:00:19.9]} 51...
Kf2 {[%clk 0:00:26.4]} 52. Kg7 {[%clk 0:00:10.5]} 52... Kxg2 {[%clk 0:00:26.3]}
53. Kxh7 {[%clk 0:00:11.5]} 53... Kxh3 {[%clk 0:00:27.6]} 54. Kxg6 {[%clk
0:00:12.6]} 1/2-1/2

[Event "GrandPrix_30.05"]
[Site "Chess.com"]
[Date "2020.05.30"]
[Round "7"]
[White "grunbergmihai"]
[Black "PlayChessSimple"]
[Result "1/2-1/2"]
[WhiteElo "2290"]
[BlackElo "2189"]
[TimeControl "600+2"]
[EndTime "11:29:24 PDT"]
[Termination "Game drawn - insufficient material"]

1. Nf3 {[%clk 0:10:01.9]} 1... f5 {[%clk 0:09:59]} 2. d3 {[%clk 0:09:56.9]} 2...
d6 {[%clk 0:09:58]} 3. e4 {[%clk 0:09:55.8]} 3... e5 {[%clk 0:09:58.7]} 4. Nc3
{[%clk 0:09:46.4]} 4... Nc6 {[%clk 0:09:59.2]} 5. exf5 {[%clk 0:09:46.3]} 5...
Nge7 {[%clk 0:09:58.7]} 6. d4 {[%clk 0:09:26.1]} 6... exd4 {[%clk 0:09:57]} 7.
Nxd4 {[%clk 0:09:22.8]} 7... Nxd4 {[%clk 0:09:57.6]} 8. Qxd4 {[%clk 0:09:22.5]}
8... Nxf5 {[%clk 0:09:58.8]} 9. Qe4+ {[%clk 0:09:07.9]} 9... Qe7 {[%clk
0:09:57.9]} 10. Bd3 {[%clk 0:08:57.3]} 10... Qxe4+ {[%clk 0:09:50.1]} 11. Nxe4
{[%clk 0:08:39.8]} 11... d5 {[%clk 0:09:44.1]} 12. Ng3 {[%clk 0:08:36.8]} 12...
g6 {[%clk 0:09:04.9]} 13. Bf4 {[%clk 0:08:29.4]} 13... Bd6 {[%clk 0:08:56.7]}
14. Bxd6 {[%clk 0:08:05.5]} 14... Nxd6 {[%clk 0:08:56.2]} 15. O-O-O {[%clk
0:08:06.1]} 15... O-O {[%clk 0:08:50.1]} 16. f3 {[%clk 0:07:57.7]} 16... c6
{[%clk 0:08:27.2]} 17. h4 {[%clk 0:07:58.6]} 17... Nf5 {[%clk 0:08:23.8]} 18.
Nxf5 {[%clk 0:07:48.6]} 18... Bxf5 {[%clk 0:08:23.9]} 19. h5 {[%clk 0:07:46.2]}
19... Bxd3 {[%clk 0:08:08.1]} 20. Rxd3 {[%clk 0:07:46]} 20... Rae8 {[%clk
0:07:25.7]} 21. hxg6 {[%clk 0:07:41]} 21... hxg6 {[%clk 0:07:25.8]} 22. Kd2
{[%clk 0:07:33.9]} 22... Kg7 {[%clk 0:07:02.4]} 23. Rh4 {[%clk 0:07:10.3]} 23...
Rh8 {[%clk 0:06:53.7]} 24. Rxh8 {[%clk 0:07:06.5]} 24... Rxh8 {[%clk 0:06:54.2]}
25. Ke2 {[%clk 0:06:34.9]} 25... Kf6 {[%clk 0:06:46.8]} 26. Ra3 {[%clk 0:06:17]}
26... a6 {[%clk 0:06:41.7]} 27. Rb3 {[%clk 0:06:17.8]} 27... Rh7 {[%clk
0:06:12]} 28. f4 {[%clk 0:05:59.6]} 28... g5 {[%clk 0:05:38]} 29. Kf3 {[%clk
0:05:34.4]} 29... Re7 {[%clk 0:04:08.2]} 30. fxg5+ {[%clk 0:05:00]} 30... Kxg5
{[%clk 0:04:07.3]} 31. Re3 {[%clk 0:04:55.6]} 31... Rf7+ {[%clk 0:03:22.3]} 32.
Ke2 {[%clk 0:04:56]} 32... Kg4 {[%clk 0:03:18.6]} 33. a4 {[%clk 0:04:32.4]}
33... a5 {[%clk 0:02:51]} 34. Kd3 {[%clk 0:04:21.3]} 34... Rf4 {[%clk
0:02:19.9]} 35. Re7 {[%clk 0:04:07.6]} 35... Rb4 {[%clk 0:02:10.7]} 36. b3
{[%clk 0:04:03.9]} 36... b6 {[%clk 0:01:03]} 37. Re6 {[%clk 0:03:34.6]} 37... c5
{[%clk 0:01:03.4]} 38. Rd6 {[%clk 0:03:33.1]} 38... d4 {[%clk 0:00:39.4]} 39.
Ke4 {[%clk 0:03:01.1]} 39... Kg3 {[%clk 0:00:33.8]} 40. Rg6+ {[%clk 0:02:58.6]}
40... Kf2 {[%clk 0:00:34.8]} 41. Kd3 {[%clk 0:02:55.2]} 41... b5 {[%clk
0:00:22.8]} 42. axb5 {[%clk 0:02:37.2]} 42... Rxb5 {[%clk 0:00:23.6]} 43. Kc4
{[%clk 0:02:28.5]} 43... Rb4+ {[%clk 0:00:15.4]} 44. Kxc5 {[%clk 0:02:29.1]}
44... Ke3 {[%clk 0:00:14.9]} 45. Rd6 {[%clk 0:02:12.9]} 45... Rb8 {[%clk
0:00:08.1]} 46. Re6+ {[%clk 0:01:16.5]} 46... Kd2 {[%clk 0:00:08.3]} 47. Kxd4
{[%clk 0:01:11]} 47... Kxc2 {[%clk 0:00:09]} 48. Kc4 {[%clk 0:00:40.5]} 48...
Rb4+ {[%clk 0:00:08.2]} 49. Kd5 {[%clk 0:00:30.8]} 49... Rg4 {[%clk 0:00:08.6]}
50. Re2+ {[%clk 0:00:21.8]} 50... Kxb3 {[%clk 0:00:09.6]} 51. Ke5 {[%clk
0:00:22.7]} 51... a4 {[%clk 0:00:10.4]} 52. Kf5 {[%clk 0:00:23.9]} 52... Rg8
{[%clk 0:00:10.6]} 53. g4 {[%clk 0:00:25]} 53... a3 {[%clk 0:00:11.5]} 54. g5
{[%clk 0:00:25.2]} 54... a2 {[%clk 0:00:12.6]} 55. Rxa2 {[%clk 0:00:25.7]} 55...
Kxa2 {[%clk 0:00:13.6]} 56. g6 {[%clk 0:00:27]} 56... Rxg6 {[%clk 0:00:14.4]}
57. Kxg6 {[%clk 0:00:27.9]} 1/2-1/2

[Event "GrandPrix_30.05"]
[Site "Chess.com"]
[Date "2020.05.30"]
[Round "7"]
[White "Petriashvili02"]
[Black "Igrok3069"]
[Result "1/2-1/2"]
[WhiteElo "2340"]
[BlackElo "2540"]
[TimeControl "600+2"]
[EndTime "11:29:25 PDT"]
[Termination "Game drawn by repetition"]

1. c4 {[%clk 0:10:01.4]} 1... c6 {[%clk 0:09:59.8]} 2. Nf3 {[%clk 0:10:00]} 2...
d5 {[%clk 0:10:00.5]} 3. b3 {[%clk 0:10:01.4]} 3... Bg4 {[%clk 0:10:00.1]} 4. e3
{[%clk 0:10:00]} 4... e6 {[%clk 0:09:59.9]} 5. Be2 {[%clk 0:10:01.2]} 5... Nd7
{[%clk 0:09:49.9]} 6. Bb2 {[%clk 0:10:02.1]} 6... Ngf6 {[%clk 0:09:48.7]} 7. h3
{[%clk 0:10:03.4]} 7... Bh5 {[%clk 0:09:46.2]} 8. O-O {[%clk 0:10:02.3]} 8...
Bd6 {[%clk 0:09:44.3]} 9. d4 {[%clk 0:10:03.2]} 9... O-O {[%clk 0:09:18.3]} 10.
Nc3 {[%clk 0:10:02.3]} 10... Qe7 {[%clk 0:09:05.8]} 11. Re1 {[%clk 0:09:52.7]}
11... Ne4 {[%clk 0:08:35.1]} 12. Nxe4 {[%clk 0:09:35.2]} 12... dxe4 {[%clk
0:08:33.5]} 13. Ne5 {[%clk 0:09:29.6]} 13... Bxe2 {[%clk 0:08:33.3]} 14. Qxe2
{[%clk 0:09:31.5]} 14... f5 {[%clk 0:08:15.9]} 15. Nxd7 {[%clk 0:09:24.6]} 15...
Qxd7 {[%clk 0:08:16.1]} 16. f3 {[%clk 0:08:56.5]} 16... exf3 {[%clk 0:07:12.6]}
17. Qxf3 {[%clk 0:08:58.4]} 17... Bc7 {[%clk 0:07:13.2]} 18. Ba3 {[%clk
0:08:46.2]} 18... Rf6 {[%clk 0:07:11.8]} 19. Rad1 {[%clk 0:08:47.4]} 19... Re8
{[%clk 0:06:08.9]} 20. Rf1 {[%clk 0:07:16.2]} 20... Qf7 {[%clk 0:04:47.6]} 21.
Bb2 {[%clk 0:07:00.3]} 21... Qg6 {[%clk 0:04:16.5]} 22. d5 {[%clk 0:05:38.4]}
22... e5 {[%clk 0:04:15.5]} 23. c5 {[%clk 0:05:39.7]} 23... cxd5 {[%clk
0:04:02.5]} 24. Qxd5+ {[%clk 0:05:35]} 24... Rf7 {[%clk 0:04:01.3]} 25. e4
{[%clk 0:03:58.1]} 25... f4 {[%clk 0:03:52.4]} 26. Rd3 {[%clk 0:03:58.4]} 26...
h5 {[%clk 0:03:39.9]} 27. Qxb7 {[%clk 0:03:48.9]} 27... Bb6 {[%clk 0:03:08.3]}
28. Qd5 {[%clk 0:02:38.3]} 28... Rd8 {[%clk 0:03:08.3]} 29. Qc4 {[%clk
0:02:26.7]} 29... Bxc5+ {[%clk 0:03:05.7]} 30. Kh1 {[%clk 0:02:28.1]} 30... Rxd3
{[%clk 0:02:11]} 31. Qxd3 {[%clk 0:02:30]} 31... Qe6 {[%clk 0:02:11.9]} 32. Qd8+
{[%clk 0:02:28]} 32... Rf8 {[%clk 0:01:12.2]} 33. Qg5 {[%clk 0:02:17.8]} 33...
Bd4 {[%clk 0:01:12.3]} 34. Bxd4 {[%clk 0:02:03.6]} 34... exd4 {[%clk 0:01:14.2]}
35. Rxf4 {[%clk 0:02:04.5]} 35... Rxf4 {[%clk 0:00:51.2]} 36. Qxf4 {[%clk
0:02:05.6]} 36... d3 {[%clk 0:00:51]} 37. Kg1 {[%clk 0:01:22]} 37... Qd7 {[%clk
0:00:47]} 38. Qd2 {[%clk 0:01:13.9]} 38... Qd4+ {[%clk 0:00:46.5]} 39. Kf1
{[%clk 0:01:14]} 39... Qxe4 {[%clk 0:00:47.2]} 40. Kf2 {[%clk 0:00:55.7]} 40...
Qd4+ {[%clk 0:00:38.7]} 41. Qe3 {[%clk 0:00:27.8]} 41... Qd5 {[%clk 0:00:39.5]}
42. Ke1 {[%clk 0:00:23.6]} 42... Kh7 {[%clk 0:00:07.9]} 43. Qf3 {[%clk 0:00:21]}
43... Qa5+ {[%clk 0:00:07.4]} 44. Kd1 {[%clk 0:00:20.9]} 44... Qxa2 {[%clk
0:00:07]} 45. Qxh5+ {[%clk 0:00:21.4]} 45... Kg8 {[%clk 0:00:06.9]} 46. Qe8+
{[%clk 0:00:22.6]} 46... Kh7 {[%clk 0:00:07.8]} 47. Qe4+ {[%clk 0:00:16.9]}
47... Kh6 {[%clk 0:00:07.8]} 48. Qh4+ {[%clk 0:00:14.5]} 48... Kg6 {[%clk
0:00:08.3]} 49. Qe4+ {[%clk 0:00:15.8]} 49... Kh6 {[%clk 0:00:09.2]} 50. Qf4+
{[%clk 0:00:14.1]} 50... Kg6 {[%clk 0:00:08.8]} 51. Qe4+ {[%clk 0:00:15.5]}
51... Kf6 {[%clk 0:00:09.3]} 52. Qf4+ {[%clk 0:00:15.5]} 52... Kg6 {[%clk
0:00:09.8]} 53. Qe4+ {[%clk 0:00:17]} 1/2-1/2

[Event "GrandPrix_30.05"]
[Site "Chess.com"]
[Date "2020.05.30"]
[Round "7"]
[White "MasterSonnevanck2"]
[Black "TheNextLevelFan"]
[Result "0-1"]
[WhiteElo "2130"]
[BlackElo "2262"]
[TimeControl "600+2"]
[EndTime "11:29:34 PDT"]
[Termination "TheNextLevelFan won by resignation"]

1. d4 {[%clk 0:10:01.9]} 1... d5 {[%clk 0:10:00.1]} 2. c4 {[%clk 0:10:02.4]}
2... dxc4 {[%clk 0:10:00.7]} 3. e4 {[%clk 0:10:02.4]} 3... e5 {[%clk 0:10:01]}
4. Nf3 {[%clk 0:10:03.1]} 4... exd4 {[%clk 0:10:01.7]} 5. Bxc4 {[%clk
0:10:03.7]} 5... Nf6 {[%clk 0:10:02.2]} 6. e5 {[%clk 0:09:52.6]} 6... Nd5 {[%clk
0:10:02.8]} 7. Qxd4 {[%clk 0:09:27.5]} 7... c6 {[%clk 0:09:59.3]} 8. O-O {[%clk
0:09:21.2]} 8... Be7 {[%clk 0:10:00.1]} 9. Nc3 {[%clk 0:08:35.4]} 9... Nxc3
{[%clk 0:09:52.2]} 10. Qxc3 {[%clk 0:08:32.7]} 10... O-O {[%clk 0:09:47.9]} 11.
Rd1 {[%clk 0:08:14.3]} 11... Qc7 {[%clk 0:09:42]} 12. Bf4 {[%clk 0:08:08.1]}
12... Bg4 {[%clk 0:09:34]} 13. Re1 {[%clk 0:07:03.5]} 13... Qb6 {[%clk
0:09:20.6]} 14. a3 {[%clk 0:06:48.9]} 14... Nd7 {[%clk 0:09:05.8]} 15. Ng5
{[%clk 0:06:39.3]} 15... Nc5 {[%clk 0:07:19.9]} 16. Qg3 {[%clk 0:05:29.9]} 16...
Bf5 {[%clk 0:07:10.9]} 17. e6 {[%clk 0:04:54.9]} 17... Nxe6 {[%clk 0:07:00.9]}
18. Nxe6 {[%clk 0:04:23.6]} 18... fxe6 {[%clk 0:06:45.2]} 19. Bc7 {[%clk
0:03:35.5]} 19... Qc5 {[%clk 0:06:29.4]} 20. Rac1 {[%clk 0:03:32.5]} 20... Qd4
{[%clk 0:03:01]} 21. Rxe6 {[%clk 0:03:26.8]} 21... Qxc4 {[%clk 0:01:23.4]} 22.
Rxc4 {[%clk 0:03:22.9]} 22... Bxe6 {[%clk 0:01:24.7]} 23. Re4 {[%clk 0:03:18]}
23... Rf6 {[%clk 0:01:23.2]} 24. Qe3 {[%clk 0:02:31.1]} 24... Kf7 {[%clk
0:01:22.9]} 25. f4 {[%clk 0:01:52.3]} 25... b6 {[%clk 0:01:17.1]} 26. b4 {[%clk
0:01:43.7]} 26... Bf8 {[%clk 0:00:56.6]} 27. Be5 {[%clk 0:01:26.6]} 27... Rg6
{[%clk 0:00:55.5]} 28. Rd4 {[%clk 0:01:07]} 28... Bd5 {[%clk 0:00:51.5]} 29. Rd2
{[%clk 0:00:55.4]} 29... Re8 {[%clk 0:00:48.3]} 30. Qh3 {[%clk 0:00:42.6]} 30...
Kg8 {[%clk 0:00:40.3]} 31. Qd7 {[%clk 0:00:42.4]} 31... Re7 {[%clk 0:00:34.2]}
32. Qd8 {[%clk 0:00:34.6]} 32... Rf7 {[%clk 0:00:27.6]} 33. h3 {[%clk 0:00:29]}
33... h5 {[%clk 0:00:27.8]} 34. Kh2 {[%clk 0:00:28]} 34... Kh7 {[%clk
0:00:26.6]} 35. b5 {[%clk 0:00:27.6]} 35... Bxa3 {[%clk 0:00:15.2]} 36. bxc6
{[%clk 0:00:26.8]} 36... Bxc6 {[%clk 0:00:17.1]} 37. Qd3 {[%clk 0:00:21.7]}
37... Bc5 {[%clk 0:00:07.1]} 38. f5 {[%clk 0:00:22]} 38... Rg5 {[%clk
0:00:07.6]} 39. f6+ {[%clk 0:00:19.7]} 39... g6 {[%clk 0:00:08.9]} 40. Qc4
{[%clk 0:00:06]} 40... Rf8 {[%clk 0:00:09.9]} 41. Qe6 {[%clk 0:00:05.1]} 41...
Rf5 {[%clk 0:00:07.7]} 42. Rd7+ {[%clk 0:00:05.7]} 42... Kh6 {[%clk 0:00:07]}
43. Qxc6 {[%clk 0:00:03.4]} 43... Rxe5 {[%clk 0:00:07.6]} 44. Qc7 {[%clk
0:00:03.7]} 44... Re6 {[%clk 0:00:04.5]} 45. Rh7+ {[%clk 0:00:04.1]} 45... Kg5
{[%clk 0:00:05.5]} 46. Qg3+ {[%clk 0:00:04.1]} 46... Kf5 {[%clk 0:00:06.9]} 47.
Qf3+ {[%clk 0:00:04.2]} 47... Ke5 {[%clk 0:00:08.4]} 48. Qe2+ {[%clk 0:00:04.3]}
48... Kxf6 {[%clk 0:00:09.5]} 49. Qf3+ {[%clk 0:00:04.1]} 49... Ke5 {[%clk
0:00:10.9]} 50. Qxf8 {[%clk 0:00:04.5]} 50... Bxf8 {[%clk 0:00:11.2]} 51. Rxa7
{[%clk 0:00:04.6]} 51... Bd6 {[%clk 0:00:12.7]} 52. Rb7 {[%clk 0:00:05.2]} 52...
Kd5+ {[%clk 0:00:14.6]} 53. Kg1 {[%clk 0:00:04.5]} 53... Bc5+ {[%clk 0:00:16.5]}
54. Kf1 {[%clk 0:00:04.8]} 54... Kc4 {[%clk 0:00:17.8]} 0-1

[Event "GrandPrix_30.05"]
[Site "Chess.com"]
[Date "2020.05.30"]
[Round "7"]
[White "N4700000"]
[Black "Velis23"]
[Result "0-1"]
[WhiteElo "2198"]
[BlackElo "2191"]
[TimeControl "600+2"]
[EndTime "11:29:37 PDT"]
[Termination "Velis23 won on time"]

1. e4 {[%clk 0:09:56.2]} 1... c6 {[%clk 0:09:57.1]} 2. Nc3 {[%clk 0:09:55.3]}
2... d5 {[%clk 0:09:57.8]} 3. Qe2 {[%clk 0:09:55.9]} 3... dxe4 {[%clk
0:09:48.8]} 4. Nxe4 {[%clk 0:09:55.3]} 4... Nf6 {[%clk 0:09:48.5]} 5. Nxf6+
{[%clk 0:09:52.6]} 5... gxf6 {[%clk 0:09:48.4]} 6. b3 {[%clk 0:09:49.4]} 6...
Bf5 {[%clk 0:09:39.8]} 7. Bb2 {[%clk 0:09:48.9]} 7... Nd7 {[%clk 0:08:56.5]} 8.
g4 {[%clk 0:09:40.8]} 8... Bg6 {[%clk 0:08:47.8]} 9. f4 {[%clk 0:09:39.4]} 9...
h6 {[%clk 0:08:12.8]} 10. f5 {[%clk 0:09:37.2]} 10... Bh7 {[%clk 0:08:13.7]} 11.
Nf3 {[%clk 0:09:34.4]} 11... Qc7 {[%clk 0:08:07.7]} 12. O-O-O {[%clk 0:09:28.3]}
12... O-O-O {[%clk 0:08:06.7]} 13. Bg2 {[%clk 0:09:23.2]} 13... Rg8 {[%clk
0:08:06.7]} 14. h3 {[%clk 0:09:22.9]} 14... h5 {[%clk 0:08:04.5]} 15. Nd4 {[%clk
0:09:15]} 15... Ne5 {[%clk 0:07:36]} 16. Bf3 {[%clk 0:09:07.5]} 16... Bh6 {[%clk
0:07:30.9]} 17. gxh5 {[%clk 0:08:56.1]} 17... a6 {[%clk 0:07:24.6]} 18. Bg4
{[%clk 0:08:48.6]} 18... c5 {[%clk 0:07:20.5]} 19. Nf3 {[%clk 0:08:35.3]} 19...
Nxg4 {[%clk 0:07:20.4]} 20. hxg4 {[%clk 0:08:37.2]} 20... Rxg4 {[%clk
0:07:11.7]} 21. Nh4 {[%clk 0:08:08.9]} 21... Qf4 {[%clk 0:06:15]} 22. Ng6 {[%clk
0:07:45.8]} 22... fxg6 {[%clk 0:05:51.6]} 23. hxg6 {[%clk 0:07:46.4]} 23... Bxg6
{[%clk 0:05:50.3]} 24. fxg6 {[%clk 0:07:40.1]} 24... Rxg6 {[%clk 0:05:46.6]} 25.
Qxe7 {[%clk 0:07:39.7]} 25... Rxd2 {[%clk 0:04:55.4]} 26. Kb1 {[%clk 0:07:34.1]}
26... Qe3 {[%clk 0:03:55.6]} 27. Qh7 {[%clk 0:06:20.5]} 27... Rxd1+ {[%clk
0:03:39.9]} 28. Rxd1 {[%clk 0:06:19.9]} 28... Rg1 {[%clk 0:03:29.4]} 29. Qh8+
{[%clk 0:06:02.7]} 29... Kc7 {[%clk 0:03:25.2]} 30. Qd8+ {[%clk 0:06:01.6]}
30... Kc6 {[%clk 0:03:25.8]} 31. Qd6+ {[%clk 0:05:56.4]} 31... Kb5 {[%clk
0:03:23]} 32. a4+ {[%clk 0:05:49.3]} 32... Ka5 {[%clk 0:03:10.9]} 33. Bc3+
{[%clk 0:05:00.1]} 33... Qxc3 {[%clk 0:03:04.3]} 34. Rxg1 {[%clk 0:05:02]} 34...
Be3 {[%clk 0:02:56.7]} 35. Rg3 {[%clk 0:04:22.4]} 35... Qe1+ {[%clk 0:02:49.5]}
36. Ka2 {[%clk 0:04:21.5]} 36... Bd4 {[%clk 0:02:41.6]} 37. b4+ {[%clk 0:04:09]}
37... cxb4 {[%clk 0:01:15.7]} 38. Qxd4 {[%clk 0:01:32.7]} 38... Qxg3 {[%clk
0:01:09.2]} 39. Qxf6 {[%clk 0:01:17.2]} 39... Kxa4 {[%clk 0:00:44.9]} 40. Qb6
{[%clk 0:01:07]} 40... Qf3 {[%clk 0:00:31.4]} 41. Kb2 {[%clk 0:01:01.1]} 41...
Qc6 {[%clk 0:00:25.7]} 42. Qf2 {[%clk 0:00:57.7]} 42... Qc3+ {[%clk 0:00:26]}
43. Kb1 {[%clk 0:00:52]} 43... b5 {[%clk 0:00:13.4]} 44. Qb6 {[%clk 0:00:49.8]}
44... a5 {[%clk 0:00:13.2]} 45. Qe6 {[%clk 0:00:35.5]} 45... b3 {[%clk
0:00:12.9]} 46. Qe4+ {[%clk 0:00:36.1]} 46... b4 {[%clk 0:00:05.9]} 47. cxb3+
{[%clk 0:00:31.1]} 47... Qxb3+ {[%clk 0:00:05.9]} 48. Ka1 {[%clk 0:00:32]} 48...
Qc3+ {[%clk 0:00:05.4]} 49. Kb1 {[%clk 0:00:32.1]} 49... Ka3 {[%clk 0:00:05.7]}
50. Qe2 {[%clk 0:00:21.2]} 50... Qb3+ {[%clk 0:00:06.5]} 51. Ka1 {[%clk
0:00:20.4]} 51... a4 {[%clk 0:00:07.6]} 0-1

[Event "GrandPrix_30.05"]
[Site "Chess.com"]
[Date "2020.05.30"]
[Round "7"]
[White "Saxar85"]
[Black "Msb2"]
[Result "1/2-1/2"]
[WhiteElo "2503"]
[BlackElo "2629"]
[TimeControl "600+2"]
[EndTime "11:29:38 PDT"]
[Termination "Game drawn by repetition"]

1. Nf3 {[%clk 0:09:55.3]} 1... d5 {[%clk 0:10:00.1]} 2. b3 {[%clk 0:09:55.8]}
2... Bg4 {[%clk 0:09:59.9]} 3. e3 {[%clk 0:09:54.2]} 3... e6 {[%clk 0:10:00]} 4.
Bb2 {[%clk 0:09:52.3]} 4... Nf6 {[%clk 0:10:01.2]} 5. h3 {[%clk 0:09:47.4]} 5...
Bh5 {[%clk 0:10:01.3]} 6. d3 {[%clk 0:09:43.5]} 6... Nbd7 {[%clk 0:10:01.6]} 7.
Nbd2 {[%clk 0:09:42.1]} 7... c6 {[%clk 0:10:02.9]} 8. g4 {[%clk 0:08:42.3]} 8...
Bg6 {[%clk 0:10:02.4]} 9. Bg2 {[%clk 0:08:42.8]} 9... h6 {[%clk 0:09:55.3]} 10.
Qe2 {[%clk 0:08:31.2]} 10... Bd6 {[%clk 0:09:54.8]} 11. Nh4 {[%clk 0:08:21.1]}
11... Bh7 {[%clk 0:09:54.3]} 12. f4 {[%clk 0:08:06.7]} 12... g5 {[%clk
0:08:44.7]} 13. Nhf3 {[%clk 0:07:42.3]} 13... gxf4 {[%clk 0:08:35.3]} 14. O-O-O
{[%clk 0:07:41.6]} 14... Qe7 {[%clk 0:08:04.2]} 15. e4 {[%clk 0:07:27.2]} 15...
e5 {[%clk 0:06:18.1]} 16. exd5 {[%clk 0:07:24.1]} 16... Nxd5 {[%clk 0:05:44.8]}
17. Nc4 {[%clk 0:07:17.1]} 17... f6 {[%clk 0:05:45.9]} 18. Nh4 {[%clk
0:06:46.3]} 18... O-O-O {[%clk 0:05:34.9]} 19. Be4 {[%clk 0:06:12.2]} 19... Bb4
{[%clk 0:05:20]} 20. Bxh7 {[%clk 0:05:35.4]} 20... Qxh7 {[%clk 0:05:10.1]} 21.
Nf5 {[%clk 0:04:54.4]} 21... Kb8 {[%clk 0:04:43.5]} 22. a3 {[%clk 0:03:29.2]}
22... Bc3 {[%clk 0:04:27.5]} 23. Ncd6 {[%clk 0:02:32.4]} 23... N7b6 {[%clk
0:03:22.5]} 24. Ne4 {[%clk 0:02:21.5]} 24... Bxb2+ {[%clk 0:03:22.4]} 25. Kxb2
{[%clk 0:02:22.2]} 25... Rhf8 {[%clk 0:03:18.1]} 26. Nc5 {[%clk 0:02:04.7]}
26... Rfe8 {[%clk 0:03:00.1]} 27. Ne4 {[%clk 0:02:03.7]} 27... Qh8 {[%clk
0:02:31]} 28. Rhe1 {[%clk 0:01:53.1]} 28... Ne7 {[%clk 0:02:06]} 29. Nfd6 {[%clk
0:01:51.5]} 29... Rf8 {[%clk 0:02:07.5]} 30. Qd2 {[%clk 0:01:45.2]} 30... f5
{[%clk 0:02:00.9]} 31. gxf5 {[%clk 0:01:33.2]} 31... Nxf5 {[%clk 0:02:02.8]} 32.
Nxf5 {[%clk 0:01:23.4]} 32... Rxf5 {[%clk 0:02:04.7]} 33. Rg1 {[%clk 0:01:22.8]}
33... Rf7 {[%clk 0:01:32.8]} 34. Rg6 {[%clk 0:01:20.4]} 34... h5 {[%clk
0:01:23.9]} 35. Rdg1 {[%clk 0:01:19.3]} 35... f3 {[%clk 0:01:04.1]} 36. Qg5
{[%clk 0:01:10.9]} 36... f2 {[%clk 0:00:27.3]} 37. Rf1 {[%clk 0:01:09.7]} 37...
Rdf8 {[%clk 0:00:28.5]} 38. Rh6 {[%clk 0:01:02.5]} 38... Qg7 {[%clk 0:00:24.2]}
39. Qxg7 {[%clk 0:01:02.4]} 39... Rxg7 {[%clk 0:00:26.1]} 40. Rxf2 {[%clk
0:01:03.5]} 40... Rxf2 {[%clk 0:00:19.8]} 41. Nxf2 {[%clk 0:01:04.4]} 41... Rg2
{[%clk 0:00:17]} 42. Ne4 {[%clk 0:01:04.3]} 42... Nd5 {[%clk 0:00:17.2]} 43.
Rxh5 {[%clk 0:01:00.7]} 43... Ne3 {[%clk 0:00:18.5]} 44. Rxe5 {[%clk 0:00:58]}
44... Rxc2+ {[%clk 0:00:19.3]} 45. Kb1 {[%clk 0:00:57.8]} 45... Rh2 {[%clk
0:00:21.2]} 46. Rh5 {[%clk 0:00:54.8]} 46... Kc7 {[%clk 0:00:19]} 47. b4 {[%clk
0:00:54.9]} 47... Nd5 {[%clk 0:00:14.4]} 48. Rh7+ {[%clk 0:00:54.2]} 48... Kb8
{[%clk 0:00:12.4]} 49. h4 {[%clk 0:00:53.2]} 49... Nf4 {[%clk 0:00:07.9]} 50. d4
{[%clk 0:00:36.5]} 50... b6 {[%clk 0:00:08.4]} 51. Nd6 {[%clk 0:00:30.4]} 51...
Nd5 {[%clk 0:00:09.3]} 52. h5 {[%clk 0:00:27.9]} 52... Re2 {[%clk 0:00:08.7]}
53. Kc1 {[%clk 0:00:28.1]} 53... Nc3 {[%clk 0:00:09.9]} 54. Rb7+ {[%clk
0:00:18]} 54... Ka8 {[%clk 0:00:10.5]} 55. Rc7 {[%clk 0:00:17.3]} 55... Na2+
{[%clk 0:00:11.7]} 56. Kd1 {[%clk 0:00:18.1]} 56... Nc3+ {[%clk 0:00:13.6]} 57.
Kc1 {[%clk 0:00:19.3]} 57... Na2+ {[%clk 0:00:14.5]} 58. Kb1 {[%clk 0:00:19.9]}
58... Nc3+ {[%clk 0:00:15.9]} 59. Kc1 {[%clk 0:00:21]} 1/2-1/2